Cogmind - Beta 13 @@@ ROGUE MODE // 2024.05.31 @ 17:51:19 Player: Bace Troncons Result: Destroyed by Autobeam Turret with Autobeam Performance ------------- Evolutions (0) 0 Regions Visited (2) 400 Robots Destroyed (21) 105 Value Destroyed (403) 403 Prototype IDs (2) 40 Alien Tech Used (0) 0 Bonus (0) 0 TOTAL SCORE: 948 Bonus ------- None Cogmind --------- Core Integrity 0/250 Matter 300/300 Energy 72/100 System Corruption 10% Temperature Cool (12) Movement Core (750) Ox14 Location -10/Subcaves Parts ------- > --- POWER (1) -------- (None) > --- PROPULSION (2) --- (None) > --- UTILITY (2) ------ High-capacity Storage Unit > --- WEAPON (2) ------- Spread Laser > --- INVENTORY (20) --- Light Ion Engine Light Ion Engine Light Treads Backup Propulsion I Backup Propulsion I Improved Heat Sink Structural Scanner Improved Terrain Scanner Hacking Suite Grenade Launcher Peak State ------------ > --- POWER ------------ Light Nuclear Core > --- PROPULSION ------- Light Treads Light Treads > --- UTILITY ---------- Improved Heat Sink High-capacity Storage Unit > --- WEAPON ----------- Spread Laser Spread Laser > --- INVENTORY -------- Light Ion Engine Light Ion Engine Aluminum Leg Aluminum Leg Backup Propulsion I Backup Propulsion I Improved Terrain Scanner Hacking Suite Grenade Launcher [Rating: 14] Favorites ----------- Power Light Nuclear Core Engine Light Ion Engine Power Core Light Nuclear Core Propulsion Light Treads Treads Light Treads Leg Aluminum Leg Hover Unit Backup Propulsion I Utility High-capacity Storage Unit Device Improved Heat Sink Storage High-capacity Storage Unit Processor Targeting Computer Weapon Light Assault Rifle Energy Gun Spread Laser Ballistic Gun Light Assault Rifle Build | -11 -10 -10 ------- Run | Yrd Mat Sub Slots Evolved . | . . . Power . | . . . Propulsion . | . . . Utility . | . . . Weapon . | . . . Parts Attached 28 | 6 22 . Power 5 | 1 4 . Engine 3 | 1 2 . Core 2 | . 2 . Reactor . | . . . Propulsion 11 | 2 9 . Treads 8 | 2 6 . Leg 1 | . 1 . Wheel . | . . . Hover 2 | . 2 . Flight . | . . . Utility 4 | 1 3 . Device 1 | . 1 . Storage 2 | 1 1 . Processor 1 | . 1 . Hackware . | . . . Protection . | . . . Artifact . | . . . Weapon 8 | 2 6 . Energy Gun 3 | 1 2 . Energy Cannon . | . . . Ballistic Gun 5 | 1 4 . Ballistic Cannon . | . . . Launcher . | . . . Special Weapon . | . . . Impact Weapon . | . . . Slashing Weapon . | . . . Piercing Weapon . | . . . Special Melee Weapon . | . . . Unidentified Prototypes . | . . . Parts Lost 7 | . 2 5 Power 1 | . . 1 Propulsion 3 | . 1 2 Utility 1 | . . 1 Weapon 2 | . 1 1 Highest Loss Streak 4 | . 2 4 To Critical Strikes . | . . . Average Slot Usage (%) 89 | . 89 88 Engine 5 | . 6 . Core 7 | . 7 5 Treads 25 | . 25 26 Device 3 | . 2 13 Storage 14 | . 14 14 Processor 6 | . 6 . Energy Gun 13 | . 11 27 Ballistic Gun 11 | . 12 . Naked Turns . | . . . Heaviest Build 52 | 11 52 52 Greatest Support 40 | 40 40 40 Greatest Overweight (x) 14 | 1 14 14 Average Overweight (x) . | . . 1 Largest Inventory Capacity 20 | 8 20 20 Average Capacity 15 | 7 15 20 Most Carried 13 | 5 13 10 Average Carried 7 | 3 7 10 Final Capacity 20 | 8 20 20 Final Carried 10 | 5 10 10 Class Distribution -------------------- 100% | Mutant Dominant Class ---------------- Mutant | -10/Materials Mutant | -10/Subcaves Resources | -11 -10 -10 ----------- Run | Yrd Mat Sub Matter Collected 603 | 269 322 12 Remotely . | . . . Salvage Created 565 | 81 435 49 Parts 37 | 8 24 5 Haulers Intercepted . | . . . Recyclers Shooed 2 | . 2 . Parts Field Recycled . | . . . Retrieved Matter . | . . . Parts Self-Destructed 9 | . . 9 Prevented . | . . . Kills | -11 -10 -10 ------- Run | Yrd Mat Sub Combat Hostiles Destroyed 13 | . 9 4 Guns 13 | . 9 4 Classes Destroyed 8 | 1 6 1 Worker 1 | . 1 . Tunneler 3 | 3 . . Recycler 1 | . 1 . Mechanic 1 | . 1 . Operator 2 | . 2 . Swarmer 6 | . 3 3 Grunt 6 | . 6 . Subdweller 1 | . . 1 Best Kill Streak 3 | 1 3 3 Combat Bots Only 3 | . 3 3 Max Kills in Single Turn 1 | 1 1 1 Gunslinging . | . . . Exploded . | . . . Melee . | . . . Uniques/NPCs Destroyed . | . . . Combat | -11 -10 -10 -------- Run | Yrd Mat Sub Hostile Shots Fired 130 | . 61 69 Missed 40 | . 17 23 Damage Taken 1114 | . 638 476 Core 254 | . 147 107 Absorbed by Shields . | . . . Core Remaining (%) 100 | 100 . . Volleys Fired 51 | 10 32 9 Largest 2 | 2 2 2 Hottest 130 | 60 130 130 Shots Fired 102 | 20 66 16 Gun 102 | 20 66 16 Cannon . | . . . Launcher . | . . . Special . | . . . Kinetic 44 | 10 34 . Thermal 27 | . 11 16 Explosive . | . . . Electromagnetic 31 | 10 21 . Robot Hit Streak 14 | 4 9 14 Robot Miss Streak 9 | 2 2 9 Penetration Max . | . . . Secondary Targets 2 | . 2 . Max Gunslinging Chain 1 | . 1 . Shots Hit Robots 65 | 10 42 13 Core Hits 45 | 4 28 13 Critical Kills . | . . . Critical Parts Destroyed . | . . . Critical Strikes 1 | . 1 . Corrupt 1 | . 1 . Melee Attacks . | . . . Impact . | . . . Slashing . | . . . Piercing . | . . . Sneak Attacks . | . . . Combat Hostiles . | . . . Follow-up Attacks . | . . . Damage Inflicted 768 | 138 446 184 Guns 768 | 138 446 184 Cannons . | . . . Explosions . | . . . Melee . | . . . Ramming . | . . . Kinetic 202 | 35 167 . Thermal 277 | . 93 184 Explosive . | . . . Electromagnetic 289 | 103 186 . Impact . | . . . Slashing . | . . . Piercing . | . . . Highest Corruption 10 | . 10 10 Average Corruption 7 | . 7 10 Corruption Purged . | . . . Corruption Blocked . | . . . Effects 37 | . 29 8 Message Errors 10 | . 7 3 Matter Fused 13 | . 12 1 Heat Flow Errors 1 | . 1 . Energy Discharges 3 | . . 3 Data Loss (minor) 2 | . 2 . Data Loss (major) 1 | . 1 . Misfires 7 | . 6 1 Overload Shots . | . . . Overflow Damage . | . . . Projectiles . | . . . Explosions . | . . . Melee . | . . . Knockbacks . | . . . Impact . | . . . Kinetic . | . . . Secondary . | . . . Self-Inflicted Damage . | . . . Shots . | . . . Rammed . | . . . Targets Rammed . | . . . Kicked . | . . . Crushed . | . . . Highest Temperature 150 | 40 150 . Average Temperature 29 | 17 32 . Received Heat Transfer 384 | . 252 132 Siege Activations . | . . . Robots Corrupted . | . . . Combat Hostiles . | . . . Parts Fried . | . . . Impact Corruptions . | . . . Robots Melted . | . . . Combat Hostiles . | . . . Parts Melted . | . . . Heat Transferred 350 | . 120 230 Parts Sabotaged . | . . . Parts Stolen . | . . . Parts Stripped . | . . . Power Chain Reactions . | . . . Alert | -11 -10 -10 ------- Run | Yrd Mat Sub Peak Influence 203 | 15 203 . Initial 9 | . 9 . Average 43 | 5 47 . Maximum Alert Level 1 | . 1 . Low Security (%) 98 | 100 98 . Level 1 1 | . 1 . Level 2 . | . . . Level 3 . | . . . Level 4 . | . . . Level 5 . | . . . High Security . | . . . Max Security . | . . . Squads Dispatched 3 | . 3 . Investigation . | . . . Extermination . | . . . Reinforcement 3 | . 3 . Assault . | . . . Garrison . | . . . Intercept . | . . . Searches Triggered . | . . . Construction Impeded . | . . . Haulers Reinforced . | . . . Active Scanning Responses . | . . . Cargo Convoy Interrupts . | . . . Stealth | -11 -10 -10 --------- Run | Yrd Mat Sub Distress Signals 3 | . 3 . Communications Jammed . | . . . Distress Signals . | . . . Times Spotted 49 | . 21 28 Peak Tracking Total 4 | . 3 4 Tactical Retreats 3 | . . 3 Traps | -11 -10 -10 ------- Run | Yrd Mat Sub Traps Triggered 11 | . 11 . Indirectly . | . . . Trap Hack Attempts . | . . . Triggered . | . . . Disarmed . | . . . Reprogrammed . | . . . Reused . | . . . Traps Extracted . | . . . Installed . | . . . Triggered . | . . . Machines | -11 -10 -10 ---------- Run | Yrd Mat Sub Machines Disabled . | . . . Max in Single Turn . | . . . Machines Repaired . | . . . Machines Dismantled . | . . . Machines Sabotaged . | . . . Overloaded Fab Kills . | . . . Hacking | -11 -10 -10 --------- Run | Yrd Mat Sub Machines Accessed 7 | . 7 . Terminals 5 | . 5 . Fabricators . | . . . Repair Stations . | . . . Recycling Units 2 | . 2 . Scanalyzers . | . . . Garrison Access . | . . . Total Hacks 14 | . 14 . Successful 8 | . 8 . Failed 6 | . 6 . Catastrophic 3 | . 3 . Database Lockouts . | . . . Manual 4 | . 4 . Terminals 12 | . 12 . Fabricators . | . . . Repair Stations . | . . . Recycling Units 2 | . 2 . Scanalyzers . | . . . Garrison Access . | . . . Terminal Hacks 6 | . 6 . Prototype ID Bank 1 | . 1 . Unreport Threat 1 | . 1 . Locate Traps 1 | . 1 . Hauler Manifests 1 | . 1 . Registered Components 1 | . 1 . Zone Layout 1 | . 1 . Fabricator Hacks . | . . . Repair Station Hacks . | . . . Recycling Unit Hacks 2 | . 2 . Retrieve Components 2 | . 2 . Scanalyzer . | . . . Garrison Access Hacks . | . . . Unauthorized Hacks . | . . . Terminals . | . . . Fabricators . | . . . Repair Stations . | . . . Recycling Units . | . . . Scanalyzers . | . . . Garrison Access . | . . . Data Cores Recovered . | . . . Used . | . . . Hacking Detections 4 | . 4 . Full Trace Events 1 | . 1 . Feedback Events . | . . . Feedback Blocked . | . . . Robot Schematics Acquired . | . . . Robots Built . | . . . Authchips . | . . . Time . | . . . Total Robot Build Rating . | . . . Part Schematics Acquired . | . . . Parts Built . | . . . Authchips . | . . . Time . | . . . Total Part Build Rating . | . . . Parts Repaired . | . . . Time . | . . . Parts Recycled . | . . . Recycled Matter . | . . . Retrieved Matter . | . . . Retrieved Components 14 | . 14 . Parts Scanalyzed . | . . . Part Schematics Acquired . | . . . Parts Damaged . | . . . Bothacking | -11 -10 -10 ------------ Run | Yrd Mat Sub Used RIF Installer . | . . . Robots Hacked . | . . . Non-combat . | . . . Combat . | . . . Robot Hacks Applied . | . . . Relay Couplers Released . | . . . Fabnet Peak Effective % . | . . . Robots Rewired . | . . . Allies Hacked . | . . . Hacks Repelled . | . . . Allies | -11 -10 -10 -------- Run | Yrd Mat Sub Total Allies . | . . . Largest Group . | . . . Highest-Rated Group . | . . . Highest-Rated Ally . | . . . Total Orders . | . . . Ally Attacks . | . . . Total Damage . | . . . Kills . | . . . Allies Corrupted . | . . . Allies Melted . | . . . Intel | -11 -10 -10 ------- Run | Yrd Mat Sub Robot Analysis Total . | . . . Derelict Logs Recovered . | . . . Drone Launches . | . . . Drone Recoveries . | . . . Exploration | -11 -10 -10 ------------- Run | Yrd Mat Sub Turns Passed 2009 | 176 1597 236 Spaces Moved 672 | 86 501 85 Core 10 | 4 5 1 Treads 641 | 82 475 84 Legs 2 | . 2 . Wheels . | . . . Hover 19 | . 19 . Flight . | . . . Fastest Speed 50 | 50 160 240 Average Speed 219 | 156 225 246 Slowest Speed 750 | 160 750 750 Overloaded Moves . | . . . Propulsion Burnouts . | . . . Robots Hopped . | . . . Cave-ins Triggered . | . . . Exploration Rate (%) 30 | 5 69 17 Regions Visited 2 Branch Regions 1 Pre-discovered Areas 1 | . . 1 Known Exits Taken . | . . . Unknown Exits Taken 2 | 1 1 . Scrap Searched . | . . . Spaces Dug . | . . . Terrain Destroyed . | . . . Melee . | . . . Projectile . | . . . AOE . | . . . Terrain Rammed . | . . . Walls Destroyed . | . . . Machines Disabled . | . . . Actions | -11 -10 -10 --------- Run | Yrd Mat Sub Total 1122 | 107 913 102 Wait 343 | . 335 8 Move 670 | 85 500 85 Hop . | . . . Pick Up 15 | 6 9 . Fast Attach 21 | 5 16 . Attach 5 | 1 4 . Detach 7 | . 7 . Swap 2 | . 2 . Drop 8 | . 8 . Fire 51 | 10 32 9 Melee . | . . . Ram . | . . . Kick . | . . . Crush . | . . . Escape Stasis . | . . . Rewire . | . . . Trap . | . . . Miscellaneous . | . . . Route ------- -11/Scrapyard -10/Materials (discovered 3 exits: [*Mat] / [*Min] / [*Sub]) -10/Subcaves (discovered 1 exit: [*Rec]) History --------- Turn | Location | Event 14 | -11/Scrapyard | Discovered new exit (range 15) 177 | -11/Scrapyard | Entered Materials 312 | -10/Materials | Build established: Mutant 853 | -10/Materials | Discovered new exit (range 16) 1038 | -10/Materials | Discovered new exit (range 5) 1107 | -10/Materials | Core integrity fell below 50% 1630 | -10/Materials | System corruption reached 10% 1755 | -10/Materials | Discovered new exit (range 9) 1774 | -10/Materials | Entered Subcaves 1862 | -10/Subcaves | Learned location of Zion (-7) 1862 | -10/Subcaves | Met a Zionite searching for "candidates" 2001 | -10/Subcaves | Discovered new exit (range 8) 2004 | -10/Subcaves | Core integrity fell below 20% 2010 | -10/Subcaves | Destroyed by Autobeam Turret with Autobeam Last Messages --------------- 01977_ S-10 Pest destroyed. 01985_ Flight Unit fries itself beyond repair. 01986_ Lgt. Ion Engine fries itself beyond repair. 01988_ System corrupted: Matter fused (-8). 01988_ Lgt. Assault Rifle fries itself beyond repair. 01990_ Flight Unit fries itself beyond repair. 01993_ Lgt. Ion Engine fries itself beyond repair. 01994_ Acquired 8 matter. 02001_ Lgt. Assault Rifle fries itself beyond repair. 02001_ EXIT=FOUND 02002_ Spread Laser destroyed. 02004_ Lgt. Treads destroyed. 02007_ Imp. Heat Sink destroyed. 02007_ Lgt. Treads destroyed. Map ----- +----------------------------------------------------+ | ?## "### ##?????????????????????????? | | ?# " #?????????????????????????? | | ?# "#?????????????????????????? | | ?## &%&"#?????????????????????????? | | ??# ## =!%&!#?????????????????????????? | | ??# ""##### #&""#?????????????????????????? | | ??# " ##??# ##" #?????????????????????????? | | ??# #####??### ## #????????????????????????? | | ??# ???????# ##?###????????????????????????? | | ??# ???????# #??????????? ?????????????????? | | ??## ???????# ##??????????" #???????????????? | | ???# #???????# #???###?### " ???????????????? | | ??? ????????# ##??# ## ????????????????? | | ??# ????????# #?## #?????????????????? | | ??# ?????#### #?# #?????????????????? | | ??#?#??????# ### ##????????????????? | | ???????????# #????????????????? | | ???????????# %& #????????????????? | | ???????????# ### ###???????????????????? | | ???????????## #??????????????????????????? | | ????????????#### ########???????????????????? | | ??????????????## %#" """#???????????????????? | | ??????????????# %% # "#???????????????????? | | ??????????????# %# "#???????????????????? | | ??????????????# t""##??????????????????? | | ?????????????# @ <#??????????????????? | | ???????? t""##??????????????????? | | ??????? # "#???????????????????? | | ???????? ### "#???????????????????? | | ???????? #?#" """#???????????????????? | | ???????? #?########???????????????????? | | ????????? ##?????????????????????????????? | | ?????????% % #???????????????????????????????? | | ?????????? #????????????????????????????????? | | ?????????? #?????????????????????????????????? | | ??????????? ??????????????????????????????????? | | ????????????? ???????????????????????????????????? | | ?????????????????????????????????????????????????? | | ?????????????????????????????????????????????????? | | ?????????????????????????????????????????????????? | | ?????????????????????????????????????????????????? | | ?????????????????????????????????????????????????? | | ?????????????????????????????????????????????????? | | ?????????????????????????????????????????????????? | | ?????????????????????????????????????????????????? | | ?????????????????????????????????????????????????? | | ?????????????????????????????????????????????????? | | ?????????????????????????????????????????????????? | | ?????????????????????????????????????????????????? | | ?????????????????????????????????????????????????? | +----------------------------------------------------+ Best States ------------- Heat Dissipation 39 Energy Generation 14 Energy Capacity 160 Matter Stores 300 Matter Capacity 300 Sight Range 16 Terrain Scan Density 10 Evasion (%) 40 Targeting Accuracy 5 Recoil Reduction 2 Item Schematics ----------------- None Robot Schematics ------------------ None Fabricated ------------ Nothing Alien Tech Used ----------------- None Achievements -------------- None Challenges ------------ None Game ------ Seed SensorGhostStorm Manual? 0 Play Time 00:11:41 Cumulative 95.3 hours Start 2024.05.31 @ 17:40:17 End 2024.05.31 @ 17:51:19 Sessions 1 Manual Loads 0 Difficulty Rogue Special Mode None Game No. 162 Rogue 162 Adventurer 0 Explorer 0 Win Type - Total 1 Types 1/0/0/0/0/0/0/0/0 Lore% 42 Gallery% 46 Achievement% 33 Wizard Run 0 Options --------- Layout 1 ASCII 0 Keyboard 1 Movement Numpad Keybinds 0 Fullscreen 1 Font 24/Smallcaps Map View 50x35 Zoom Use 0% Tactical HUD 1 Map Filters NONE Filters NONE Steam 1 RUN: e49a33e3-0d5b-4534-8e02-25e9d32c8b73